[Event "Latvijas 2022. gada jauniešu čempionāta fināls"]
[Site "Riga, Latvia"]
[Date "2022.06.15"]
[Round "6.27"]
[White "Savicevs, Arsenijs"]
[Black "Freibergs, Filips"]
[Result "1-0"]
[TimeControl "3600+30"]
[WhiteElo "1961"]
[BlackElo "1250"]

1. Nf3 {[%clk 01:00:54]} {[%emt 00:00:04]} d5 {[%clk 01:00:45]} {[%emt
00:00:16]} 2. d4 {[%clk 01:01:18]} {[%emt 00:00:07]} Bf5 {[%clk 01:00:05]}
{[%emt 00:01:10]} 3. c4 {[%clk 01:01:37]} {[%emt 00:00:10]} e6 {[%clk
01:00:23]} {[%emt 00:00:13]} 4. Nc3 {[%clk 01:01:55]} {[%emt 00:00:12]} Nf6
{[%clk 01:00:36]} {[%emt 00:00:17]} 5. Bf4 {[%clk 01:02:10]} {[%emt 00:00:15]}
c6 {[%clk 01:00:44]} {[%emt 00:00:23]} 6. e3 {[%clk 01:02:29]} {[%emt
00:00:10]} Be7 {[%clk 01:00:35]} {[%emt 00:00:39]} 7. Be2 {[%clk 01:02:50]}
{[%emt 00:00:08]} Nbd7 {[%clk 01:00:34]} {[%emt 00:00:33]} 8. Nh4 {[%clk
01:03:09]} {[%emt 00:00:10]} Nh5 {[%clk 00:57:51]} {[%emt 00:03:15]} 9. Nxf5
{[%clk 01:03:28]} {[%emt 00:00:09]} exf5 {[%clk 00:58:18]} {[%emt 00:00:04]} 10.
Bxh5 {[%clk 01:03:55]} {[%emt 00:00:03]} g6 {[%clk 00:57:07]} {[%emt 00:01:42]}
11. Be2 {[%clk 01:04:09]} {[%emt 00:00:14]} Nf8 {[%clk 00:56:09]} {[%emt
00:01:29]} 12. cxd5 {[%clk 01:04:27]} {[%emt 00:00:13]} cxd5 {[%clk 00:56:37]}
{[%emt 00:00:01]} 13. Bb5+ {[%clk 01:04:50]} {[%emt 00:00:07]} Nd7 {[%clk
00:56:59]} {[%emt 00:00:08]} 14. Nxd5 {[%clk 01:04:53]} {[%emt 00:00:27]} Qa5+
{[%clk 00:57:00]} {[%emt 00:00:29]} 15. Nc3 {[%clk 01:05:15]} {[%emt 00:00:08]}
Bb4 {[%clk 00:56:28]} {[%emt 00:01:03]} 16. Bxd7+ {[%clk 01:05:19]} Kxd7 {[%clk
00:56:57]} 17. O-O {[%clk 01:05:11]} {[%emt 00:00:37]} h5 {[%clk 00:56:35]}
{[%emt 00:00:53]} 18. Qb3 {[%clk 01:05:29]} {[%emt 00:00:11]} Bxc3 {[%clk
00:54:49]} {[%emt 00:02:17]} 19. Qxf7+ {[%clk 01:05:46]} {[%emt 00:00:13]} Kc6
{[%clk 00:54:02]} {[%emt 00:01:18]} 20. Qe6+ {[%clk 01:06:01]} {[%emt
00:00:13]} Kb5 {[%clk 00:54:14]} {[%emt 00:00:19]} 21. a4+ {[%clk 01:06:17]}
{[%emt 00:00:12]} Kb4 {[%clk 00:54:26]} {[%emt 00:00:19]} 22. Bd6+ {[%clk
01:06:38]} {[%emt 00:00:08]} 1-0

[Event "Latvijas 2022. gada jauniešu čempionāta fināls"]
[Site "Riga, Latvia"]
[Date "2022.06.15"]
[Round "7.1"]
[White "Varpins, Kristians"]
[Black "Vingris, Mikelis"]
[Result "0-1"]
[TimeControl "3600+30"]
[WhiteElo "1374"]
[BlackElo "1781"]

1. e4 {[%clk 01:00:59]} c5 {[%clk 01:00:57]} {[%emt 00:00:04]} 2. Nf3 {[%clk
01:01:19]} {[%emt 00:00:09]} d6 {[%clk 01:01:21]} {[%emt 00:00:06]} 3. d4
{[%clk 01:01:44]} {[%emt 00:00:05]} cxd4 {[%clk 01:01:47]} {[%emt 00:00:04]} 4.
Nxd4 {[%clk 01:02:07]} {[%emt 00:00:07]} Nf6 {[%clk 01:02:12]} {[%emt
00:00:06]} 5. Nc3 {[%clk 01:02:23]} {[%emt 00:00:13]} a6 {[%clk 01:02:36]}
{[%emt 00:00:06]} 6. Bd3 {[%clk 01:01:37]} {[%emt 00:01:15]} e5 {[%clk
01:02:44]} {[%emt 00:00:23]} 7. Nde2 {[%clk 01:01:35]} {[%emt 00:00:31]} Be7
{[%clk 01:03:03]} {[%emt 00:00:12]} 8. h3 {[%clk 01:01:01]} {[%emt 00:01:04]}
h5 {[%clk 01:03:25]} {[%emt 00:00:08]} 9. Be3 {[%clk 01:00:39]} {[%emt
00:00:53]} Be6 {[%clk 01:03:23]} {[%emt 00:00:31]} 10. Qd2 {[%clk 00:59:19]}
{[%emt 00:01:49]} Nbd7 {[%clk 01:03:42]} {[%emt 00:00:13]} 11. O-O {[%clk
00:55:55]} {[%emt 00:03:53]} b5 {[%clk 01:02:45]} {[%emt 00:01:27]} 12. a3
{[%clk 00:54:52]} {[%emt 00:01:33]} Nb6 {[%clk 00:56:19]} {[%emt 00:06:57]} 13.
f4 {[%clk 00:47:51]} {[%emt 00:07:30]} Rc8 {[%clk 00:45:44]} {[%emt 00:11:05]}
14. Rad1 {[%clk 00:40:51]} {[%emt 00:07:30]} Qc7 {[%clk 00:42:50]} {[%emt
00:03:24]} 15. fxe5 {[%clk 00:29:58]} {[%emt 00:11:22]} dxe5 {[%clk 00:43:11]}
{[%emt 00:00:10]} 16. Ng3 {[%clk 00:29:28]} {[%emt 00:01:00]} g6 {[%clk
00:33:18]} {[%emt 00:10:23]} 17. Qf2 {[%clk 00:25:09]} {[%emt 00:04:47]} Nfd7
{[%clk 00:32:32]} {[%emt 00:01:18]} 18. Kh1 {[%clk 00:19:22]} {[%emt 00:06:16]}
h4 {[%clk 00:30:03]} {[%emt 00:03:00]} 19. Nge2 {[%clk 00:19:12]} {[%emt
00:00:39]} Qb7 {[%clk 00:25:58]} {[%emt 00:04:36]} 20. Qf3 {[%clk 00:07:45]}
{[%emt 00:11:56]} Rd8 {[%clk 00:17:00]} {[%emt 00:09:29]} 21. Kh2 {[%clk
00:01:14]} {[%emt 00:07:01]} Rg8 {[%clk 00:13:26]} {[%emt 00:04:05]} 22. Nd5
{[%clk 00:00:53]} {[%emt 00:00:50]} Nxd5 {[%clk 00:12:41]} {[%emt 00:01:15]} 23.
exd5 {[%clk 00:01:16]} {[%emt 00:00:06]} Bxd5 {[%clk 00:12:47]} {[%emt
00:00:25]} 24. Be4 {[%clk 00:01:29]} {[%emt 00:00:17]} Nf6 {[%clk 00:07:50]}
{[%emt 00:05:28]} 25. Bxd5 {[%clk 00:01:24]} {[%emt 00:00:35]} Rxd5 {[%clk
00:06:43]} {[%emt 00:01:37]} 26. Bg5 {[%clk 00:00:41]} {[%emt 00:01:12]} e4
{[%clk 00:06:22]} {[%emt 00:00:51]} 27. Qe3 {[%clk 00:00:45]} {[%emt 00:00:26]}
Rxd1 {[%clk 00:02:18]} {[%emt 00:04:34]} 28. Rxd1 {[%clk 00:00:59]} {[%emt
00:00:15]} Kf8 {[%clk 00:00:55]} {[%emt 00:01:54]} 29. Bh6+ {[%clk 00:00:51]}
{[%emt 00:00:38]} Ke8 {[%clk 00:01:22]} {[%emt 00:00:03]} 30. Bg5 {[%clk
00:00:47]} {[%emt 00:00:33]} Nd7 {[%clk 00:00:56]} {[%emt 00:00:56]} 31. Bxe7
{[%clk 00:01:01]} {[%emt 00:00:17]} Kxe7 {[%clk 00:01:25]} {[%emt 00:00:01]} 32.
Nc3 {[%clk 00:01:01]} {[%emt 00:00:30]} f5 {[%clk 00:01:35]} {[%emt 00:00:20]}
33. Qg5+ {[%clk 00:01:07]} {[%emt 00:00:24]} Kf7 {[%clk 00:01:25]} {[%emt
00:00:40]} 34. Nd5 {[%clk 00:01:10]} {[%emt 00:00:27]} Qb8+ {[%clk 00:01:44]}
{[%emt 00:00:11]} 35. Nf4 {[%clk 00:00:49]} {[%emt 00:00:51]} Nf6 {[%clk
00:01:39]} {[%emt 00:00:35]} 36. Kh1 {[%clk 00:00:56]} {[%emt 00:00:23]} Qe5
{[%clk 00:01:31]} {[%emt 00:00:38]} 37. c3 {[%clk 00:00:43]} {[%emt 00:00:43]}
a5 {[%clk 00:01:46]} {[%emt 00:00:15]} 38. Kg1 {[%clk 00:00:35]} {[%emt
00:00:38]} e3 {[%clk 00:01:40]} {[%emt 00:00:37]} 39. Ne2 {[%clk 00:00:34]}
{[%emt 00:00:30]} Re8 {[%clk 00:00:42]} {[%emt 00:01:27]} 40. Qxh4 {[%clk
00:00:35]} {[%emt 00:00:30]} Qe4 {[%clk 00:00:37]} {[%emt 00:00:36]} 41. Qxe4
{[%clk 00:00:33]} {[%emt 00:00:31]} Rxe4 {[%clk 00:01:06]} {[%emt 00:00:01]} 42.
Rd4 {[%clk 00:00:35]} {[%emt 00:00:28]} Re5 {[%clk 00:01:07]} {[%emt 00:00:29]}
43. b4 {[%clk 00:00:38]} {[%emt 00:00:28]} axb4 {[%clk 00:01:04]} {[%emt
00:00:33]} 44. cxb4 {[%clk 00:00:55]} {[%emt 00:00:13]} Nd5 {[%clk 00:00:41]}
{[%emt 00:00:52]} 45. g3 {[%clk 00:01:03]} {[%emt 00:00:22]} Nb6 {[%clk
00:00:34]} {[%emt 00:00:37]} 46. Kg2 {[%clk 00:00:53]} {[%emt 00:00:40]} g5
{[%clk 00:00:44]} {[%emt 00:00:20]} 47. Kf3 {[%clk 00:00:58]} {[%emt 00:00:26]}
Nc4 {[%clk 00:01:02]} {[%emt 00:00:11]} 48. Rd3 {[%clk 00:01:19]} {[%emt
00:00:08]} Re4 {[%clk 00:00:40]} {[%emt 00:00:53]} 49. Rd4 {[%clk 00:01:15]}
{[%emt 00:00:34]} Re5 {[%clk 00:00:36]} {[%emt 00:00:33]} 50. Rd3 {[%clk
00:01:25]} {[%emt 00:00:21]} Nd2+ {[%clk 00:00:42]} {[%emt 00:00:24]} 51. Kg2
{[%clk 00:01:25]} {[%emt 00:00:30]} Kg6 {[%clk 00:00:41]} {[%emt 00:00:32]} 52.
Rd6+ {[%clk 00:00:54]} {[%emt 00:01:00]} Kg7 {[%clk 00:01:09]} {[%emt
00:00:02]} 53. Rd4 {[%clk 00:00:41]} {[%emt 00:00:43]} Nc4 {[%clk 00:00:40]}
{[%emt 00:01:00]} 54. Rd3 {[%clk 00:01:04]} {[%emt 00:00:06]} Kg6 {[%clk
00:00:40]} {[%emt 00:00:30]} 55. Kf3 {[%clk 00:01:14]} {[%emt 00:00:19]} Re6
{[%clk 00:00:34]} {[%emt 00:00:37]} 56. Rd5 {[%clk 00:00:45]} {[%emt 00:00:59]}
Nxa3 {[%clk 00:00:43]} {[%emt 00:00:21]} 57. Nd4 {[%clk 00:00:58]} {[%emt
00:00:17]} Re4 {[%clk 00:00:41]} {[%emt 00:00:32]} 58. Rd6+ {[%clk 00:00:41]}
{[%emt 00:00:48]} Kf7 {[%clk 00:00:47]} {[%emt 00:00:24]} 59. Ke2 {[%clk
00:00:47]} {[%emt 00:00:24]} f4 {[%clk 00:00:57]} {[%emt 00:00:19]} 60. gxf4
{[%clk 00:00:51]} {[%emt 00:00:26]} gxf4 {[%clk 00:01:25]} {[%emt 00:00:03]} 61.
Kf3 {[%clk 00:01:15]} {[%emt 00:00:05]} Re8 {[%clk 00:00:46]} {[%emt 00:01:09]}
62. Ne2 {[%clk 00:01:08]} {[%emt 00:00:37]} Nc2 {[%clk 00:00:37]} {[%emt
00:00:39]} 63. Kxf4 {[%clk 00:00:46]} {[%emt 00:00:52]} Nxb4 {[%clk 00:00:56]}
{[%emt 00:00:12]} 64. h4 {[%clk 00:00:34]} {[%emt 00:00:41]} Nc2 {[%clk
00:00:42]} {[%emt 00:00:44]} 65. Rc6 {[%clk 00:00:42]} {[%emt 00:00:22]} Ne1
{[%clk 00:00:44]} {[%emt 00:00:29]} 66. Rb6 {[%clk 00:00:45]} {[%emt 00:00:27]}
b4 {[%clk 00:00:49]} {[%emt 00:00:25]} 67. Kg3 {[%clk 00:01:00]} {[%emt
00:00:15]} Nd3 {[%clk 00:00:42]} {[%emt 00:00:36]} 68. Kf3 {[%clk 00:00:50]}
{[%emt 00:00:40]} Ne5+ {[%clk 00:00:56]} {[%emt 00:00:16]} 69. Kf4 {[%clk
00:00:58]} {[%emt 00:00:22]} Nd3+ {[%clk 00:00:48]} {[%emt 00:00:38]} 70. Kf3
{[%clk 00:01:18]} {[%emt 00:00:10]} Kg7 {[%clk 00:00:57]} {[%emt 00:00:21]} 71.
h5 {[%clk 00:00:50]} {[%emt 00:00:58]} Re7 {[%clk 00:01:09]} {[%emt 00:00:18]}
72. Ng3 {[%clk 00:00:42]} {[%emt 00:00:38]} Kh7 {[%clk 00:01:13]} {[%emt
00:00:26]} 73. Rb5 {[%clk 00:00:41]} {[%emt 00:00:30]} Ne1+ {[%clk 00:01:17]}
{[%emt 00:00:27]} 74. Ke2 {[%clk 00:00:46]} {[%emt 00:00:25]} Nc2 {[%clk
00:01:33]} {[%emt 00:00:13]} 75. Kd3 {[%clk 00:00:48]} {[%emt 00:00:29]} Rc7
{[%clk 00:01:22]} {[%emt 00:00:41]} 76. Ne4 {[%clk 00:00:36]} {[%emt 00:00:41]}
e2 {[%clk 00:01:13]} {[%emt 00:00:40]} 77. Ng5+ {[%clk 00:00:37]} {[%emt
00:00:29]} Kh6 {[%clk 00:01:26]} {[%emt 00:00:16]} 78. Nf3 {[%clk 00:00:32]}
{[%emt 00:00:36]} e1=Q {[%clk 00:01:27]} {[%emt 00:00:29]} 79. Nxe1 {[%clk
00:00:54]} {[%emt 00:00:08]} Nxe1+ {[%clk 00:01:55]} {[%emt 00:00:02]} 80. Kd2
{[%clk 00:01:10]} {[%emt 00:00:15]} Nc2 {[%clk 00:02:06]} {[%emt 00:00:17]} 81.
Kd3 {[%clk 00:01:13]} {[%emt 00:00:27]} Rc3+ {[%clk 00:02:03]} {[%emt
00:00:33]} 82. Kd2 {[%clk 00:01:26]} {[%emt 00:00:18]} Rc8 {[%clk 00:02:16]}
{[%emt 00:00:16]} 83. Kd3 {[%clk 00:01:29]} {[%emt 00:00:28]} Rc6 {[%clk
00:01:07]} {[%emt 00:01:39]} 84. Kd2 {[%clk 00:01:10]} {[%emt 00:00:49]} Rc4
{[%clk 00:00:48]} {[%emt 00:00:47]} 85. Kd3 {[%clk 00:01:21]} {[%emt 00:00:21]}
Na3 {[%clk 00:00:55]} {[%emt 00:00:23]} 86. Rb6+ {[%clk 00:00:32]} {[%emt
00:01:19]} Kxh5 {[%clk 00:01:17]} {[%emt 00:00:08]} 87. Rb5+ {[%clk 00:00:41]}
{[%emt 00:00:21]} Kg6 {[%clk 00:01:15]} {[%emt 00:00:32]} 88. Rb6+ {[%clk
00:00:51]} {[%emt 00:00:20]} Kf5 {[%clk 00:01:37]} {[%emt 00:00:08]} 89. Rb5+
{[%clk 00:01:07]} {[%emt 00:00:14]} Ke6 {[%clk 00:01:58]} {[%emt 00:00:09]} 90.
Rb6+ {[%clk 00:00:57]} {[%emt 00:00:40]} Kd5 {[%clk 00:02:20]} {[%emt
00:00:07]} 91. Rh6 {[%clk 00:01:02]} {[%emt 00:00:24]} Rc3+ {[%clk 00:02:42]}
{[%emt 00:00:09]} 92. Kd2 {[%clk 00:01:17]} {[%emt 00:00:14]} Nb1+ {[%clk
00:02:49]} {[%emt 00:00:25]} 93. Kd1 {[%clk 00:01:22]} {[%emt 00:00:24]} Kc4
{[%clk 00:03:05]} {[%emt 00:00:15]} 0-1

[Event "Latvijas 2022. gada jauniešu čempionāta fināls"]
[Site "Riga, Latvia"]
[Date "2022.06.15"]
[Round "7.2"]
[White "Otrohovs, Maksims"]
[Black "Sokolovskis, Pavels"]
[Result "1-0"]
[TimeControl "3600+30"]
[WhiteElo "1098"]
[BlackElo "1572"]

1. Nf3 {[%clk 01:00:55]} {[%emt 00:00:03]} Nf6 {[%clk 01:00:11]} {[%emt
00:00:51]} 2. g3 {[%clk 01:01:19]} {[%emt 00:00:06]} g6 {[%clk 01:00:11]}
{[%emt 00:00:30]} 3. Bg2 {[%clk 01:01:44]} {[%emt 00:00:04]} Bg7 {[%clk
01:00:37]} {[%emt 00:00:04]} 4. O-O {[%clk 01:02:09]} {[%emt 00:00:05]} O-O
{[%clk 01:01:03]} {[%emt 00:00:04]} 5. d4 {[%clk 01:02:37]} {[%emt 00:00:02]}
d5 {[%clk 01:00:31]} {[%emt 00:01:02]} 6. c4 {[%clk 01:02:49]} {[%emt
00:00:19]} c6 {[%clk 01:00:12]} {[%emt 00:00:49]} 7. Nc3 {[%clk 01:03:05]}
{[%emt 00:00:14]} Bg4 {[%clk 00:57:46]} {[%emt 00:02:56]} 8. Ne5 {[%clk
01:02:51]} {[%emt 00:00:43]} Be6 {[%clk 00:55:32]} {[%emt 00:02:44]} 9. cxd5
{[%clk 01:02:29]} {[%emt 00:00:53]} Nxd5 {[%clk 00:52:58]} {[%emt 00:03:04]} 10.
Nf3 {[%clk 01:00:58]} {[%emt 00:02:00]} Nd7 {[%clk 00:48:47]} {[%emt 00:04:42]}
11. e4 {[%clk 01:00:55]} {[%emt 00:00:32]} Nxc3 {[%clk 00:49:05]} {[%emt
00:00:12]} 12. bxc3 {[%clk 01:01:24]} {[%emt 00:00:01]} Bc4 {[%clk 00:49:24]}
{[%emt 00:00:12]} 13. Re1 {[%clk 01:01:18]} {[%emt 00:00:35]} Nb6 {[%clk
00:45:53]} {[%emt 00:04:01]} 14. a4 {[%clk 00:59:35]} {[%emt 00:02:13]} Re8
{[%clk 00:38:33]} {[%emt 00:07:50]} 15. a5 {[%clk 00:55:40]} {[%emt 00:04:25]}
Nd7 {[%clk 00:38:54]} {[%emt 00:00:09]} 16. Nd2 {[%clk 00:55:47]} {[%emt
00:00:23]} Ba6 {[%clk 00:39:02]} {[%emt 00:00:22]} 17. f4 {[%clk 00:55:09]}
{[%emt 00:01:08]} e6 {[%clk 00:29:34]} {[%emt 00:09:58]} 18. e5 {[%clk
00:54:30]} {[%emt 00:01:09]} c5 {[%clk 00:27:46]} {[%emt 00:02:18]} 19. Ne4
{[%clk 00:53:42]} {[%emt 00:01:18]} Bf8 {[%clk 00:27:28]} {[%emt 00:00:48]} 20.
Ba3 {[%clk 00:52:53]} {[%emt 00:01:18]} f5 {[%clk 00:25:01]} {[%emt 00:02:59]}
21. Ng5 {[%clk 00:51:52]} {[%emt 00:01:29]} h6 {[%clk 00:24:31]} {[%emt
00:01:01]} 22. Nxe6 {[%emt 00:07:07]} 1-0

[Event "Latvijas 2022. gada jauniešu čempionāta fināls"]
[Site "Riga, Latvia"]
[Date "2022.06.15"]
[Round "7.3"]
[White "Mierins, Emils Janis"]
[Black "Bogdanovics, Kirills"]
[Result "1-0"]
[TimeControl "3600+30"]
[WhiteElo "2016"]
[BlackElo "1785"]

1. e4 {[%clk 01:00:56]} {[%emt 00:00:02]} c5 {[%clk 01:00:22]} {[%emt
00:00:40]} 2. Nf3 {[%clk 01:01:21]} {[%emt 00:00:05]} d6 {[%clk 01:00:46]}
{[%emt 00:00:06]} 3. d4 {[%clk 01:01:46]} {[%emt 00:00:04]} cxd4 {[%clk
01:01:11]} {[%emt 00:00:06]} 4. Qxd4 {[%clk 01:02:12]} {[%emt 00:00:04]} Nc6
{[%clk 01:01:30]} {[%emt 00:00:10]} 5. Bb5 {[%clk 01:02:37]} {[%emt 00:00:05]}
Bd7 {[%clk 01:01:33]} {[%emt 00:00:27]} 6. Qd3 {[%clk 01:03:01]} {[%emt
00:00:05]} g6 {[%clk 01:01:51]} {[%emt 00:00:13]} 7. c4 {[%clk 01:03:25]}
{[%emt 00:00:06]} Bg7 {[%clk 01:02:13]} {[%emt 00:00:08]} 8. Nc3 {[%clk
01:03:49]} {[%emt 00:00:07]} Nf6 {[%clk 01:02:36]} {[%emt 00:00:07]} 9. O-O
{[%clk 01:04:12]} {[%emt 00:00:06]} O-O {[%clk 01:03:00]} {[%emt 00:00:07]} 10.
h3 {[%clk 01:04:38]} {[%emt 00:00:03]} a6 {[%clk 01:02:57]} {[%emt 00:00:34]}
11. Bxc6 {[%clk 01:05:01]} {[%emt 00:00:06]} Bxc6 {[%clk 01:03:20]} {[%emt
00:00:08]} 12. Be3 {[%clk 01:05:26]} {[%emt 00:00:04]} b5 {[%clk 00:59:28]}
{[%emt 00:04:22]} 13. cxb5 {[%clk 01:05:43]} {[%emt 00:00:12]} Bxb5 {[%clk
00:59:55]} {[%emt 00:00:04]} 14. Nxb5 {[%clk 01:06:00]} {[%emt 00:00:13]} axb5
{[%clk 01:00:21]} {[%emt 00:00:05]} 15. Nd4 {[%clk 01:06:00]} {[%emt 00:00:29]}
Qd7 {[%clk 00:59:54]} {[%emt 00:00:58]} 16. Rfc1 {[%clk 01:03:07]} {[%emt
00:03:22]} Qb7 {[%clk 00:56:35]} {[%emt 00:03:50]} 17. f3 {[%clk 01:01:17]}
{[%emt 00:02:20]} b4 {[%clk 00:47:23]} {[%emt 00:09:42]} 18. Qb3 {[%clk
00:54:31]} {[%emt 00:07:15]} Nd7 {[%clk 00:42:36]} {[%emt 00:05:15]} 19. Rc4
{[%clk 00:52:31]} {[%emt 00:02:32]} Nc5 {[%clk 00:41:52]} {[%emt 00:01:14]} 20.
Qxb4 {[%clk 00:48:47]} {[%emt 00:04:14]} Rfb8 {[%clk 00:36:22]} {[%emt
00:06:00]} 21. Qxb7 {[%clk 00:40:52]} {[%emt 00:08:25]} Rxb7 {[%clk 00:36:44]}
{[%emt 00:00:08]} 22. b4 {[%clk 00:39:14]} {[%emt 00:02:08]} Nd3 {[%clk
00:31:36]} {[%emt 00:05:38]} 23. Rb1 {[%clk 00:38:29]} {[%emt 00:01:15]} Bf6
{[%clk 00:19:16]} {[%emt 00:12:51]} 24. Rb3 {[%clk 00:37:48]} {[%emt 00:01:10]}
Ne5 {[%clk 00:19:16]} {[%emt 00:00:30]} 25. Rc2 {[%clk 00:38:11]} {[%emt
00:00:07]} Nd7 {[%clk 00:16:28]} {[%emt 00:03:18]} 26. Nc6 {[%clk 00:35:24]}
{[%emt 00:03:16]} Nb6 {[%clk 00:14:52]} {[%emt 00:02:07]} 27. Na5 {[%clk
00:35:07]} {[%emt 00:00:47]} Rbb8 {[%clk 00:14:37]} {[%emt 00:00:45]} 28. Rc7
{[%clk 00:32:11]} {[%emt 00:03:26]} Kf8 {[%clk 00:09:10]} {[%emt 00:05:57]} 29.
Nc6 {[%clk 00:26:32]} {[%emt 00:06:08]} Rc8 {[%clk 00:09:31]} {[%emt 00:00:10]}
30. Bxb6 {[%clk 00:26:53]} {[%emt 00:00:10]} Rxc7 {[%clk 00:09:54]} {[%emt
00:00:07]} 31. Bxc7 {[%clk 00:27:14]} {[%emt 00:00:08]} Rc8 {[%clk 00:10:18]}
{[%emt 00:00:06]} 32. b5 {[%clk 00:24:09]} {[%emt 00:03:35]} Rxc7 {[%clk
00:10:45]} {[%emt 00:00:03]} 33. e5 {[%clk 00:22:40]} {[%emt 00:01:59]} Bg5
{[%clk 00:10:17]} {[%emt 00:00:58]} 34. exd6 {[%clk 00:20:03]} {[%emt
00:03:08]} exd6 {[%clk 00:10:35]} {[%emt 00:00:12]} 35. a4 {[%clk 00:20:24]}
{[%emt 00:00:08]} d5 {[%clk 00:10:06]} {[%emt 00:01:00]} 36. a5 {[%clk
00:20:37]} {[%emt 00:00:16]} d4 {[%clk 00:10:22]} {[%emt 00:00:14]} 37. a6
{[%clk 00:20:42]} {[%emt 00:00:26]} Be3+ {[%clk 00:10:41]} {[%emt 00:00:10]} 38.
Rxe3 {[%clk 00:20:53]} {[%emt 00:00:19]} dxe3 {[%clk 00:11:06]} {[%emt
00:00:05]} 39. a7 {[%clk 00:21:14]} {[%emt 00:00:09]} Rc8 {[%clk 00:11:29]}
{[%emt 00:00:07]} 40. b6 {[%clk 00:20:41]} {[%emt 00:01:03]} Kg7 {[%clk
00:11:43]} {[%emt 00:00:15]} 41. b7 {[%clk 00:20:07]} {[%emt 00:01:06]} Rxc6
{[%clk 00:12:06]} {[%emt 00:00:06]} 42. Kf1 {[%clk 00:20:29]} {[%emt 00:00:08]}
1-0

[Event "Latvijas 2022. gada jauniešu čempionāta fināls"]
[Site "Riga, Latvia"]
[Date "2022.06.15"]
[Round "7.4"]
[White "Harlamovs, Daniils"]
[Black "Germanovs, Georgijs"]
[Result "0-1"]
[TimeControl "3600+30"]
[WhiteElo "1407"]
[BlackElo "1750"]

1. d4 Nf6 2. c4 c5 {[%clk 01:00:30]} 3. d5 {[%clk 01:00:57]} b5 {[%clk
01:00:55]} {[%emt 01:45:24]} 4. cxb5 {[%clk 01:02:09]} a6 {[%clk 01:01:13]}
{[%emt 00:00:18]} 5. b6 {[%emt 00:00:16]} d6 6. Nc3 {[%clk 01:02:35]} {[%emt
00:00:21]} Nbd7 {[%clk 01:02:05]} {[%emt 00:00:05]} 7. e4 {[%clk 01:02:36]}
{[%emt 00:00:28]} g6 {[%clk 01:02:24]} {[%emt 00:00:12]} 8. Nf3 {[%clk
00:59:22]} {[%emt 00:03:44]} Bg7 {[%clk 01:02:42]} {[%emt 00:00:12]} 9. Be2
{[%clk 00:59:03]} {[%emt 00:00:47]} O-O {[%clk 01:02:59]} {[%emt 00:00:14]} 10.
O-O {[%clk 00:59:10]} {[%emt 00:00:23]} Nxb6 {[%clk 01:03:19]} {[%emt
00:00:10]} 11. h3 {[%clk 00:58:34]} {[%emt 00:01:07]} a5 {[%clk 01:03:34]}
{[%emt 00:00:15]} 12. Be3 {[%clk 00:58:02]} {[%emt 00:01:01]} a4 {[%clk
01:03:23]} {[%emt 00:00:42]} 13. Rc1 {[%clk 00:55:47]} {[%emt 00:02:44]} Ba6
{[%clk 01:03:45]} {[%emt 00:00:09]} 14. Bxa6 {[%clk 00:55:56]} {[%emt
00:00:21]} Rxa6 {[%clk 01:04:09]} {[%emt 00:00:06]} 15. Qe2 {[%clk 00:55:21]}
{[%emt 00:01:04]} Qa8 {[%clk 01:04:32]} {[%emt 00:00:07]} 16. Rfd1 {[%clk
00:48:21]} {[%emt 00:07:30]} Ra7 {[%clk 01:04:12]} {[%emt 00:00:51]} 17. Nd2
{[%clk 00:47:36]} {[%emt 00:01:15]} Rb8 {[%clk 01:04:33]} {[%emt 00:00:08]} 18.
f4 {[%clk 00:40:51]} {[%emt 00:07:15]} Rab7 {[%clk 01:03:34]} {[%emt 00:01:29]}
19. Rb1 {[%clk 00:40:48]} {[%emt 00:00:33]} Qa5 {[%clk 01:03:45]} {[%emt
00:00:17]} 20. a3 {[%clk 00:39:54]} {[%emt 00:01:28]} Ne8 {[%clk 01:03:21]}
{[%emt 00:00:52]} 21. Qd3 {[%clk 00:36:06]} {[%emt 00:04:19]} Nd7 {[%clk
01:02:59]} {[%emt 00:00:52]} 22. Nc4 {[%clk 00:35:45]} {[%emt 00:00:51]} Qa6
{[%clk 01:03:21]} {[%emt 00:00:07]} 23. Rdc1 {[%clk 00:33:11]} {[%emt
00:03:05]} Rb3 {[%clk 01:02:52]} {[%emt 00:00:58]} 24. Bd2 {[%clk 00:31:25]}
{[%emt 00:02:16]} Nb6 {[%clk 01:03:02]} {[%emt 00:00:20]} 25. Ne5 {[%clk
00:29:28]} {[%emt 00:02:27]} c4 {[%clk 01:03:25]} {[%emt 00:00:07]} 26. Qg3
{[%clk 00:28:08]} {[%emt 00:01:50]} dxe5 {[%clk 01:03:48]} {[%emt 00:00:08]} 27.
fxe5 {[%clk 00:28:31]} {[%emt 00:00:06]} Nd7 {[%clk 01:03:56]} {[%emt
00:00:22]} 0-1